[Event "Bremer Silvester Open 2018"]
[Site "Bremen"]
[Date "2018.12.29"]
[Round "6"]
[White "Bart, Simon"]
[Black "Schulz, Daniel"]
[Result "1/2-1/2"]
[ECO "C01"]
[WhiteElo "2072"]
[BlackElo "2069"]
[Annotator "NA"]
[PlyCount "145"]
[EventDate "2018.12.27"]
[EventType "swiss"]
[EventCountry "GER"]
[SourceTitle "playchess.com"]
[Source "ChessBase"]
[SourceQuality "1"]
[TimeControl "40/5400+30:1800+30"]

1. e4 {[%emt 0:00:00]} e6 {[%emt 0:05:36]} 2. d4 {[%emt 0:00:00]} d5 {[%emt 0:00:06]} 3. Bd3 {[%emt 0:02:41]} dxe4 {[%emt 0:06:39]} 4. Bxe4 {[%emt 0:00:06]} Nf6 {[%emt 0:00:36]} 5. Bf3 {[%emt 0:02:24]} Nbd7 {[%emt 0:05:29] C01: French: Exchange Variation} 6. Ne2 {[%emt 0:00:43]} (6. Nc3 Rb8 7. Nge2 Be7 8. O-O O-O 9. Bf4 Bd6 10. Re1 b5 11. a3 Bb7 12. Bxb7 Rxb7 13. Qd3 Bxf4 14. Nxf4 {0-1 (42) Fedorchuk,S (2648)-Duda,J (2717) Katowice 2017}) 6... Bd6 {[%emt 0:01:50]} 7. O-O {[%emt 0:02:30]} O-O {[%emt 0:00:08]} 8. c4 {[%emt 0:10:33]} c6 {[%emt 0:04:58]} 9. Nbc3 {[%emt 0:00:57]} Re8 {[%emt 0:02:12]} 10. Ng3 {[%emt 0:00:18]} Qc7 $146 {[%emt 0:02:23]} ({Predecessor:} 10... e5 11. d5 cxd5 12. Nxd5 e4 13. Be2 Nxd5 14. Qxd5 {1-0 (48) Ponkratov,P (2595)-Baraeva,M (2208) Cheliabinsk 2016}) 11. Re1 {[%emt 0:04:14]} h6 {[%emt 0:19:17]} 12. Be3 {[%emt 0:00:33]} Nf8 {[%emt 0:03:00]} 13. Rc1 {[%emt 0:01:21]} Ng6 {[%emt 0:06:46]} 14. d5 {[%emt 0:13:31]} Bd7 {[%emt 0:17:18]} 15. dxc6 {[%emt 0:05:41]} Bxc6 {[%emt 0:01:31]} 16. Nb5 {[%emt 0:01:10]} Bxb5 {[%emt 0:04:01]} 17. cxb5 {[%emt 0:00:05]} Qe7 {[%emt 0:02:24]} 18. Ne4 {[%emt 0:23:06]} Nxe4 {[%emt 0:03:04]} 19. Bxe4 {[%emt 0:00:05]} Red8 {[%emt 0:01:02]} 20. Qc2 {[%emt 0:02:03]} Ne5 {[%emt 0:03:07]} 21. g3 {[%emt 0:05:25]} Ng4 {[%emt 0:01:25]} 22. Bc5 {[%emt 0:01:37]} Nf6 {[%emt 0:00:14]} 23. Bxd6 {[%emt 0:01:42]} Rxd6 {[%emt 0:00:12]} 24. Bf3 {[%emt 0:00:36]} Nd5 {[%emt 0:02:59]} 25. Qc5 {[%emt 0:02:28]} b6 {[%emt 0:00:37]} 26. Qa3 {[%emt 0:03:41]} Qd7 {[%emt 0:00:03]} 27. Rc2 {[%emt 0:01:24]} Rd8 {[%emt 0:00:55]} 28. Rec1 {[%emt 0:01:23]} Qxb5 {[%emt 0:01:04]} 29. Qxa7 {[%emt 0:00:15]} R6d7 {[%emt 0:01:42]} 30. Qa3 {[%emt 0:00:39]} Nb4 {[%emt 0:02:09]} 31. Rc8 {[%emt 0:04:36]} Qa5 {[%emt 0:01:08]} 32. Qxa5 {[%emt 0:02:29]} bxa5 {[%emt 0:00:02]} 33. a3 {[%emt 0:01:26]} Nd3 {[%emt 0:01:12]} 34. Rxd8+ {[%emt 0:00:06]} Rxd8 {[%emt 0:00:01]} 35. Rd1 {[%emt 0:00:09]} Rd7 {[%emt 0:00:18]} 36. Bc6 {[%emt 0:00:09]} Rc7 {[%emt 0:00:22]} 37. Be4 {[%emt 0:01:41]} Rc1 {[%emt 0:01:11]} 38. Rxc1 {[%emt 0:00:07]} Nxc1 {[%emt 0:00:01]} 39. b4 {[%emt 0:01:49]} axb4 {[%emt 0:00:15]} 40. axb4 {[%emt 0:00:06]} Ne2+ {[%emt 0:01:52]} 41. Kf1 {[%emt 0:30:08]} Nc3 {[%emt 0:30:16]} 42. Bc6 {[%emt 0:00:58]} Kf8 {[%emt 0:00:00]} 43. Ke1 {[%emt 0:00:00]} Ke7 {[%emt 0:00:00]} 44. Kd2 {[%emt 0:00:00]} Na2 {[%emt 0:00:00]} 45. b5 {[%emt 0:00:00]} Kd6 {[%emt 0:00:00]} 46. f4 {[%emt 0:00:00]} Nb4 {[%emt 0:00:00]} 47. Bf3 {[%emt 0:00:00]} Kc5 {[%emt 0:00:00]} 48. Bh5 {[%emt 0:00:00]} g6 {[%emt 0:00:00]} 49. Be2 {[%emt 0:00:00]} Nd5 {[%emt 0:00:00]} 50. h4 {[%emt 0:00:00]} Nc7 {[%emt 0:00:00]} 51. h5 {[%emt 0:00:00]} gxh5 {[%emt 0:00:00]} 52. Bxh5 {[%emt 0:00:00]} f6 {[%emt 0:00:00]} 53. Ke3 {[%emt 0:00:00]} Nxb5 {[%emt 0:00:00]} 54. Bg6 {[%emt 0:01:38]} Nd6 {[%emt 0:00:00]} 55. g4 {[%emt 0:02:16]} Kd5 {[%emt 0:00:00]} 56. Bb1 {[%emt 0:00:51]} Nc4+ {[%emt 0:02:13]} 57. Kd3 {[%emt 0:00:30]} Nb2+ {[%emt 0:00:56]} 58. Ke3 {[%emt 0:00:50]} Nd1+ {[%emt 0:01:06]} 59. Kf3 {[%emt 0:00:19]} Kd4 {[%emt 0:01:17]} 60. Bc2 {[%emt 0:04:32]} Ne3 {[%emt 0:00:49]} 61. Bg6 {[%emt 0:00:39]} e5 {[%emt 0:01:47]} 62. fxe5 {[%emt 0:00:10]} fxe5 {[%emt 0:00:21]} 63. Bh7 {[%emt 0:01:42]} Nd5 {[%emt 0:00:53]} 64. Kg3 {[%emt 0:01:01]} Ke3 {[%emt 0:01:21]} 65. Bf5 {[%emt 0:00:58]} Nf6 {[%emt 0:01:33]} 66. Bg6 {[%emt 0:00:52]} Nd5 {[%emt 0:00:41]} 67. Bh7 {[%emt 0:01:23]} Nf6 {[%emt 0:00:04]} 68. Bf5 {[%emt 0:00:07]} Ng8 {[%emt 0:00:56]} 69. Bh7 {[%emt 0:00:37]} Nf6 {[%emt 0:00:11]} 70. Bg6 {[%emt 0:00:11]} e4 {[%emt 0:00:27]} 71. Kh4 {[%emt 0:00:27]} Kf4 {[%emt 0:00:51] [#]} 72. Bxe4 $1 {[%emt 0:00:14]} Nxg4 {[%emt 0:00:34]} (72... Nxe4 $5 73. Kh5 $8 Ng5 74. Kxh6 Kxg4 $11) 73. Kh5 $11 {[%emt 0:02:18]} 1/2-1/2

[Event "Bremer Silvester Open 2018"]
[Site "Bremen"]
[Date "2018.12.29"]
[Round "6"]
[White "Pahl, Erik"]
[Black "Hedke, Fred"]
[Result "0-1"]
[ECO "C62"]
[WhiteElo "1984"]
[BlackElo "2243"]
[Annotator "NA"]
[PlyCount "58"]
[EventDate "2018.12.27"]
[EventType "swiss"]
[EventCountry "GER"]
[SourceTitle "playchess.com"]
[Source "ChessBase"]
[SourceQuality "1"]
[TimeControl "40/5400+30:1800+30"]

1. e4 {[%emt 0:00:00]} e5 {[%emt 0:00:00]} 2. Nf3 {[%emt 0:00:00]} Nc6 {[%emt 0:00:22]} 3. Bb5 {[%emt 0:00:00]} d6 {[%emt 0:00:42]} 4. d4 {[%emt 0:00:26]} exd4 {[%emt 0:00:18]} 5. Nxd4 {[%emt 0:00:11]} Bd7 {[%emt 0:00:14]} 6. Bxc6 {[%emt 0:00:33]} bxc6 {[%emt 0:00:19]} 7. Qf3 {[%emt 0:00:14]} c5 {[%emt 0:05:45]} 8. Nf5 {[%emt 0:00:36]} g6 {[%emt 0:01:59]} 9. Ne3 {[%emt 0:03:01]} Bg7 {[%emt 0:01:15]} 10. O-O {[%emt 0:00:58]} Nf6 {[%emt 0:02:59]} 11. Nd5 {[%emt 0:03:19]} Nxd5 {[%emt 0:00:54]} 12. exd5 {[%emt 0:00:18]} O-O {[%emt 0:00:26]} 13. Nd2 {[%emt 0:01:49]} Re8 {[%emt 0:02:51]} 14. c3 {[%emt 0:07:01]} Qh4 {[%emt 0:04:05]} 15. h3 {[%emt 0:08:35]} Bb5 {[%emt 0:14:12]} 16. c4 {[%emt 0:01:53]} Bxc4 {[%emt 0:01:25]} 17. Nxc4 {[%emt 0:00:47]} Qxc4 {[%emt 0:00:20]} 18. Bg5 {[%emt 0:05:00]} Re5 {[%emt 0:02:07]} 19. Be3 {[%emt 0:11:32]} Rf5 {[%emt 0:07:39]} 20. Qg3 {[%emt 0:10:18]} Qxd5 {[%emt 0:02:54]} 21. Rfd1 {[%emt 0:03:48]} Qe4 {[%emt 0:03:22]} 22. Qg4 {[%emt 0:01:36]} Qc6 {[%emt 0:02:16]} 23. Rab1 {[%emt 0:02:07]} a5 {[%emt 0:02:57]} 24. Rd2 {[%emt 0:05:28]} Rb8 {[%emt 0:02:58]} 25. a3 {[%emt 0:04:48]} Re5 {[%emt 0:01:53]} 26. Bf4 {[%emt 0:03:49]} Re4 {[%emt 0:04:25]} 27. Qf3 {[%emt 0:00:24]} Qe8 {[%emt 0:02:22]} 28. Be3 {[%emt 0:00:51]} Rb3 {[%emt 0:02:32]} 29. Qd1 {[%emt 0:00:31]} Qe6 {[%emt 0:05:11]} 0-1

[Event "Bremer Silvester Open 2018"]
[Site "Bremen"]
[Date "2018.12.29"]
[Round "6"]
[White "Wachinger, David"]
[Black "Polster, Christian"]
[Result "0-1"]
[ECO "A31"]
[WhiteElo "1976"]
[BlackElo "2306"]
[Annotator "NA"]
[PlyCount "84"]
[EventDate "2018.12.27"]
[EventType "swiss"]
[EventCountry "GER"]
[SourceTitle "playchess.com"]
[Source "ChessBase"]
[SourceQuality "1"]
[TimeControl "40/5400+30:1800+30"]

1. d4 {[%emt 0:00:00]} Nf6 {[%emt 0:00:00]} 2. c4 {[%emt 0:00:00]} c5 {[%emt 0:00:00]} 3. Nf3 {[%emt 0:00:36]} cxd4 {[%emt 0:00:00]} 4. Nxd4 {[%emt 0:00:10]} e5 {[%emt 0:00:00]} 5. Nb5 {[%emt 0:00:50]} d5 {[%emt 0:00:09]} 6. cxd5 {[%emt 0:00:11]} Bc5 {[%emt 0:00:12]} 7. g3 {[%emt 0:03:27]} O-O {[%emt 0:02:29]} 8. N5c3 {[%emt 0:06:12]} e4 {[%emt 0:03:19]} 9. Bg2 {[%emt 0:05:56]} Bf5 {[%emt 0:00:30]} 10. O-O {[%emt 0:04:22]} Nbd7 {[%emt 0:03:16]} 11. Be3 {[%emt 0:26:50]} Bxe3 {[%emt 0:07:20]} 12. fxe3 {[%emt 0:00:02]} Bg6 {[%emt 0:00:49]} 13. Qd4 {[%emt 0:00:19]} Re8 {[%emt 0:04:19]} 14. Nd2 {[%emt 0:03:25]} Qe7 {[%emt 0:07:16]} 15. Nb5 {[%emt 0:28:54]} Red8 {[%emt 0:17:49]} 16. Rac1 {[%emt 0:00:54]} Qe5 {[%emt 0:03:34]} 17. Nc7 {[%emt 0:02:22]} Rac8 {[%emt 0:02:23]} 18. d6 {[%emt 0:00:05]} Qxd4 {[%emt 0:04:00]} 19. exd4 {[%emt 0:00:01]} Nb6 {[%emt 0:00:13]} 20. Bh3 {[%emt 0:00:15]} Rb8 {[%emt 0:00:45]} 21. e3 {[%emt 0:01:31]} a6 {[%emt 0:04:45]} 22. Nc4 {[%emt 0:01:46]} Nxc4 {[%emt 0:00:36]} 23. Rxc4 {[%emt 0:00:02]} Rxd6 {[%emt 0:00:12]} 24. Rfc1 {[%emt 0:00:51]} Kf8 {[%emt 0:00:51]} 25. b4 {[%emt 0:01:08]} Bh5 {[%emt 0:06:25]} 26. Bf1 {[%emt 0:04:07]} Bg4 {[%emt 0:16:51]} 27. b5 {[%emt 0:00:11]} axb5 {[%emt 0:02:21]} 28. Nxb5 {[%emt 0:00:03]} Ra6 {[%emt 0:00:09]} 29. R1c2 {[%emt 0:03:12]} Nd5 {[%emt 0:01:59]} 30. Nc7 {[%emt 0:00:18]} Nxe3 {[%emt 0:00:42]} 31. Nxa6 {[%emt 0:01:00]} bxa6 {[%emt 0:00:12]} 32. h3 {[%emt 0:00:33]} Nxc2 {[%emt 0:03:45]} 33. Rxc2 {[%emt 0:00:26]} Be6 {[%emt 0:01:21]} 34. Bxa6 {[%emt 0:01:10]} Ra8 {[%emt 0:00:43]} 35. Bb7 {[%emt 0:00:11]} Ra3 {[%emt 0:01:19]} 36. Kh2 {[%emt 0:00:33]} e3 {[%emt 0:00:58]} 37. d5 {[%emt 0:01:42]} Bf5 {[%emt 0:00:23]} 38. Re2 {[%emt 0:00:22]} Be4 {[%emt 0:00:20]} 39. Rb2 {[%emt 0:01:21]} Rd3 {[%emt 0:01:18]} 40. Rb4 {[%emt 0:03:47]} Rd2+ {[%emt 0:00:21]} 41. Kg1 {[%emt 0:30:05]} Rd1+ {[%emt 0:30:07]} 42. Kh2 {[%emt 0:00:03]} Rh1# {[%emt 0:00:08]} 0-1

[Event "Bremer Silvester Open 2018"]
[Site "Bremen"]
[Date "2018.12.30"]
[Round "7"]
[White "Grigorian, Spartak"]
[Black "Hedke, Fred"]
[Result "1-0"]
[ECO "D77"]
[WhiteElo "2346"]
[BlackElo "2243"]
[Annotator "NA"]
[PlyCount "91"]
[EventDate "2018.12.27"]
[EventType "swiss"]
[EventCountry "GER"]
[SourceTitle "playchess.com"]
[Source "ChessBase"]
[SourceQuality "1"]
[TimeControl "40/5400+30:1800+30"]

1. d4 {[%emt 0:00:00]} Nf6 {[%emt 0:00:02]} 2. c4 {[%emt 0:00:00]} e6 {[%emt 0:00:22]} 3. g3 {[%emt 0:00:04]} d5 {[%emt 0:00:48]} 4. Bg2 {[%emt 0:00:05]} g6 {[%emt 0:05:22]} 5. Nf3 {[%emt 0:02:24]} Bg7 {[%emt 0:00:13]} 6. O-O {[%emt 0:00:04]} O-O {[%emt 0:00:47]} 7. Nc3 {[%emt 0:00:15]} b6 {[%emt 0:02:23]} 8. Ne5 {[%emt 0:05:01]} Bb7 {[%emt 0:00:56]} 9. Bg5 {[%emt 0:01:04]} h6 {[%emt 0:08:35]} 10. Bxf6 {[%emt 0:09:54]} Bxf6 {[%emt 0:01:40]} 11. cxd5 {[%emt 0:01:12]} exd5 {[%emt 0:01:25]} 12. f4 {[%emt 0:01:07]} c6 {[%emt 0:11:08]} 13. e4 {[%emt 1:15:20]} Na6 {[%emt 0:08:05]} 14. exd5 {[%emt 0:00:00]} cxd5 {[%emt 0:01:02]} 15. Qb3 {[%emt 0:00:00]} Nc7 {[%emt 0:01:33]} 16. a4 {[%emt 0:00:00]} Rb8 {[%emt 0:01:16]} 17. Rfd1 {[%emt 0:00:00]} Kg7 {[%emt 0:02:46]} 18. Nb5 {[%emt 0:00:00]} a6 {[%emt 0:16:37]} 19. Nxc7 {[%emt 0:00:00]} Qxc7 {[%emt 0:00:10]} 20. Rdc1 {[%emt 0:00:00]} Qd6 {[%emt 0:05:36]} 21. Bh3 {[%emt 0:00:00]} Bxe5 {[%emt 0:04:09]} 22. fxe5 {[%emt 0:00:00]} Qd8 {[%emt 0:00:24]} 23. Rc3 {[%emt 0:00:00]} b5 {[%emt 0:06:02]} 24. axb5 {[%emt 0:00:00]} axb5 {[%emt 0:00:27]} 25. Rc5 {[%emt 0:00:00]} b4 {[%emt 0:03:15]} 26. Qxb4 {[%emt 0:00:00]} Ba6 {[%emt 0:05:35]} 27. Qd2 {[%emt 0:01:33]} Qb6 {[%emt 0:01:18]} 28. Rxd5 {[%emt 0:02:10]} Bc4 {[%emt 0:03:49]} 29. Rc5 {[%emt 0:00:06]} Bb3 {[%emt 0:01:00]} 30. Rf1 {[%emt 0:02:52]} Rbd8 {[%emt 0:01:22]} 31. Qc3 {[%emt 0:00:24]} Bd5 {[%emt 0:03:47]} 32. Bg2 {[%emt 0:00:51]} Be6 {[%emt 0:02:04]} 33. b4 {[%emt 0:00:21]} Kg8 {[%emt 0:00:31]} 34. Rf6 {[%emt 0:01:07]} Qa7 {[%emt 0:00:18]} 35. h4 {[%emt 0:00:47]} Rd7 {[%emt 0:00:27]} 36. h5 {[%emt 0:00:41]} Rfd8 {[%emt 0:00:20]} 37. hxg6 {[%emt 0:00:23]} Rxd4 {[%emt 0:00:26]} 38. gxf7+ {[%emt 0:00:04]} Bxf7 {[%emt 0:00:22]} 39. e6 {[%emt 0:00:12]} Be8 {[%emt 0:00:15]} 40. Qe3 {[%emt 0:01:15]} Qa1+ {[%emt 0:00:14]} 41. Rf1 {[%emt 0:02:33]} Rd1 {[%emt 0:00:57]} 42. Qxh6 {[%emt 0:05:09]} Rxf1+ {[%emt 0:00:31]} 43. Bxf1 {[%emt 0:00:01]} Qd4+ {[%emt 0:00:15]} 44. Kh2 {[%emt 0:02:30]} Rd5 {[%emt 0:02:14]} 45. Rc8 {[%emt 0:02:40]} Rd8 {[%emt 0:00:44]} 46. Qg5+ {[%emt 0:00:25]} 1-0

[Event "Bremer Silvester Open 2018"]
[Site "Bremen"]
[Date "2018.12.30"]
[Round "7"]
[White "Polster, Christian"]
[Black "Bart, Simon"]
[Result "0-1"]
[ECO "B99"]
[WhiteElo "2306"]
[BlackElo "2072"]
[Annotator "NA"]
[PlyCount "88"]
[EventDate "2018.12.27"]
[EventType "swiss"]
[EventCountry "GER"]
[SourceTitle "playchess.com"]
[Source "ChessBase"]
[SourceQuality "1"]
[TimeControl "40/5400+30:1800+30"]

1. e4 {[%emt 0:00:00]} c5 {[%emt 0:00:00]} 2. Nf3 {[%emt 0:00:00]} d6 {[%emt 0:00:00]} 3. d4 {[%emt 0:00:00]} cxd4 {[%emt 0:00:00]} 4. Nxd4 {[%emt 0:00:00]} Nf6 {[%emt 0:00:00]} 5. Nc3 {[%emt 0:00:00]} a6 {[%emt 0:00:00]} 6. Bg5 {[%emt 0:00:20]} e6 {[%emt 0:00:39]} 7. f4 {[%emt 0:00:08]} Be7 {[%emt 0:02:33]} 8. Qf3 {[%emt 0:00:19]} Qc7 {[%emt 0:00:26]} 9. O-O-O {[%emt 0:00:18]} Nbd7 {[%emt 0:05:56]} 10. f5 {[%emt 0:02:50]} e5 {[%emt 0:01:16]} 11. Nde2 {[%emt 0:00:20]} b5 {[%emt 0:00:29]} 12. Bxf6 {[%emt 0:00:42]} Nxf6 {[%emt 0:00:11]} 13. Nd5 {[%emt 0:00:27]} Nxd5 {[%emt 0:00:18]} 14. exd5 {[%emt 0:00:10]} h5 {[%emt 0:18:33]} 15. Ng3 {[%emt 0:05:51]} Bg5+ {[%emt 0:02:14]} 16. Kb1 {[%emt 0:00:21]} h4 {[%emt 0:14:11]} 17. Ne4 {[%emt 0:09:22]} Bf6 {[%emt 0:07:48]} 18. Bd3 {[%emt 0:05:40]} Bb7 {[%emt 0:00:43]} 19. Rc1 {[%emt 0:10:56]} Ke7 {[%emt 0:01:18]} 20. c4 {[%emt 0:09:01]} bxc4 {[%emt 0:00:08]} 21. Bxc4 {[%emt 0:00:12]} Qa5 {[%emt 0:03:46]} 22. Rhg1 {[%emt 0:04:27]} Rac8 {[%emt 0:01:36]} 23. Qd3 {[%emt 0:09:38]} Rc7 {[%emt 0:02:17]} 24. g4 {[%emt 0:06:01]} hxg3 {[%emt 0:00:07]} 25. hxg3 {[%emt 0:00:06]} Rhc8 {[%emt 0:02:52]} 26. b3 {[%emt 0:01:53]} Qb6 {[%emt 0:00:43]} 27. Rh1 {[%emt 0:02:08]} Qd4 {[%emt 0:01:14]} 28. Qxd4 {[%emt 0:06:24]} exd4 {[%emt 0:01:15]} 29. Rce1 {[%emt 0:00:50]} Be5 {[%emt 0:00:36]} 30. Rh7 {[%emt 0:00:51]} Rxc4 {[%emt 0:21:14]} 31. bxc4 {[%emt 0:08:41]} Rxc4 {[%emt 0:00:04]} 32. Nf2 {[%emt 0:04:41]} Kf6 {[%emt 0:09:24]} 33. Rh5 {[%emt 0:03:05]} Rb4+ {[%emt 0:01:48]} 34. Kc2 {[%emt 0:01:46]} g6 {[%emt 0:00:26]} 35. Ne4+ {[%emt 0:08:47]} Kg7 {[%emt 0:00:56]} 36. fxg6 {[%emt 0:00:27]} fxg6 {[%emt 0:00:13]} 37. Rh3 {[%emt 0:01:07]} Bxd5 {[%emt 0:00:15]} 38. g4 {[%emt 0:00:38]} d3+ {[%emt 0:00:16]} 39. Kxd3 {[%emt 0:00:18]} Rd4+ {[%emt 0:00:08]} 40. Kc2 {[%emt 0:00:37]} Bxe4+ {[%emt 0:00:08]} 41. Rxe4 {[%emt 0:06:30]} Rxe4 {[%emt 0:00:12]} 42. Ra3 {[%emt 0:00:05]} Rc4+ {[%emt 0:00:43]} 43. Kd3 {[%emt 0:00:08]} Rxg4 {[%emt 0:01:14]} 44. Rxa6 {[%emt 0:00:15]} Rf4 {[%emt 0:00:29] Kd4 [%clk 0:00:00]} 0-1

[Event "Bremer Silvester Open 2018"]
[Site "Bremen"]
[Date "2018.12.30"]
[Round "7"]
[White "Hoeffer, David"]
[Black "Wachinger, Nikolas"]
[Result "0-1"]
[ECO "E05"]
[WhiteElo "2259"]
[BlackElo "2306"]
[Annotator "NA"]
[PlyCount "66"]
[EventDate "2018.12.27"]
[EventType "swiss"]
[EventCountry "GER"]
[SourceTitle "playchess.com"]
[Source "ChessBase"]
[SourceQuality "1"]
[TimeControl "40/5400+30:1800+30"]

1. d4 {[%emt 0:00:00]} Nf6 {[%emt 0:00:00]} 2. Nf3 {[%emt 0:00:00]} d5 {[%emt 0:00:00]} 3. c4 {[%emt 0:00:00]} e6 {[%emt 0:00:07]} 4. g3 {[%emt 0:00:09]} Be7 {[%emt 0:00:08]} 5. Bg2 {[%emt 0:00:04]} O-O {[%emt 0:00:07]} 6. O-O {[%emt 0:00:03]} dxc4 {[%emt 0:00:07]} 7. Qc2 {[%emt 0:00:05]} a6 {[%emt 0:00:07]} 8. a4 {[%emt 0:00:03]} Bd7 {[%emt 0:00:10]} 9. Qxc4 {[%emt 0:10:25]} Bc6 {[%emt 0:01:58]} 10. Bf4 {[%emt 0:01:52]} Bd6 {[%emt 0:01:56]} 11. Ne5 {[%emt 0:07:39]} Bxg2 {[%emt 0:02:59]} 12. Kxg2 {[%emt 0:00:09]} Nd5 {[%emt 0:04:57]} 13. Nc3 {[%emt 0:03:48]} Nxf4+ {[%emt 0:05:16]} 14. gxf4 {[%emt 0:00:11]} Qh4 {[%emt 0:00:08]} 15. e3 {[%emt 0:00:25]} g5 {[%emt 0:10:24]} 16. Rg1 {[%emt 0:19:39]} gxf4 {[%emt 0:01:43]} 17. Kf3+ {[%emt 0:00:29]} Kh8 {[%emt 0:00:10]} 18. exf4 {[%emt 0:00:10]} Nc6 {[%emt 0:16:35]} 19. Ne4 {[%emt 0:20:30]} f6 {[%emt 0:19:58]} 20. Nd3 {[%emt 0:01:55]} Rad8 {[%emt 0:00:11]} 21. Rg4 {[%emt 0:04:44]} Qh6 {[%emt 0:02:28]} 22. Nec5 {[%emt 0:11:03]} Bxc5 {[%emt 0:06:33]} 23. Nxc5 {[%emt 0:00:20]} Nxd4+ {[%emt 0:02:11]} 24. Kg2 {[%emt 0:01:15]} Rg8 {[%emt 0:00:26]} 25. Rg3 {[%emt 0:00:36]} Qxf4 {[%emt 0:01:09]} 26. Re1 {[%emt 0:00:05]} Qf3+ {[%emt 0:02:55]} 27. Kg1 {[%emt 0:00:18]} Qc6 {[%emt 0:03:29]} 28. Qc3 {[%emt 0:02:18]} e5 {[%emt 0:01:16]} 29. Ree3 {[%emt 0:01:16]} Nf5 {[%emt 0:00:27]} 30. Ref3 {[%emt 0:00:33]} Rd1+ {[%emt 0:00:33]} 31. Kg2 {[%emt 0:00:06]} Nh4+ {[%emt 0:00:26]} 32. Kh3 {[%emt 0:00:03]} Nxf3 {[%emt 0:00:05]} 33. Rxf3 {[%emt 0:00:30]} b6 {[%emt 0:00:49]} 0-1

[Event "Bremer Silvester Open 2018"]
[Site "Bremen"]
[Date "2018.12.30"]
[Round "7"]
[White "Dettmann, Steffen"]
[Black "Colbow, Collin"]
[Result "1/2-1/2"]
[ECO "C48"]
[WhiteElo "2201"]
[BlackElo "2111"]
[Annotator "NA"]
[PlyCount "67"]
[EventDate "2018.12.27"]
[EventType "swiss"]
[EventCountry "GER"]
[SourceTitle "playchess.com"]
[Source "ChessBase"]
[SourceQuality "1"]
[TimeControl "40/5400+30:1800+30"]

1. e4 {[%emt 0:00:00]} e5 {[%emt 0:00:00]} 2. Nf3 {[%emt 0:00:00]} Nc6 {[%emt 0:00:00]} 3. Nc3 {[%emt 0:00:00]} Nf6 {[%emt 0:00:26]} 4. Bb5 {[%emt 0:00:09]} Nd4 {[%emt 0:05:23]} 5. Nxd4 {[%emt 0:01:27]} exd4 {[%emt 0:00:08]} 6. e5 {[%emt 0:00:11]} dxc3 {[%emt 0:03:02]} 7. exf6 {[%emt 0:00:07]} Qxf6 {[%emt 0:03:13]} 8. dxc3 {[%emt 0:00:09]} c6 {[%emt 0:02:46]} 9. Bd3 {[%emt 0:01:19]} d5 {[%emt 0:02:36]} 10. O-O {[%emt 0:01:07]} Bd6 {[%emt 0:06:02]} 11. Qh5 {[%emt 0:05:20]} h6 {[%emt 0:04:14]} 12. Be3 {[%emt 0:06:43]} O-O {[%emt 0:05:05]} 13. Rfe1 {[%emt 0:12:31]} Bd7 {[%emt 0:03:12]} 14. h4 {[%emt 0:21:28]} Qe5 {[%emt 0:13:02]} 15. Qxe5 {[%emt 0:01:01]} Bxe5 {[%emt 0:00:11]} 16. Bxh6 {[%emt 0:02:30]} Bxc3 {[%emt 0:02:55]} 17. bxc3 {[%emt 0:00:08]} gxh6 {[%emt 0:00:09]} 18. Re7 {[%emt 0:02:44]} Rad8 {[%emt 0:02:40]} 19. Rae1 {[%emt 0:00:23]} Rfe8 {[%emt 0:02:56]} 20. Rxe8+ {[%emt 0:01:19]} Rxe8 {[%emt 0:00:35]} 21. Rxe8+ {[%emt 0:00:09]} Bxe8 {[%emt 0:00:03]} 22. Kh2 {[%emt 0:00:49]} f6 {[%emt 0:09:25]} 23. Kg3 {[%emt 0:01:20]} Kg7 {[%emt 0:09:02]} 24. Kf4 {[%emt 0:01:20]} c5 {[%emt 0:01:55]} 25. g4 {[%emt 0:03:40]} b5 {[%emt 0:02:46]} 26. h5 {[%emt 0:01:21]} a5 {[%emt 0:02:29]} 27. Bf5 {[%emt 0:01:15]} Bf7 {[%emt 0:01:09]} 28. Ke3 {[%emt 0:03:59]} b4 {[%emt 0:02:53]} 29. Kd2 {[%emt 0:00:54]} d4 {[%emt 0:02:42]} 30. cxd4 {[%emt 0:01:52]} cxd4 {[%emt 0:00:03]} 31. Kd3 {[%emt 0:02:17]} Bxa2 {[%emt 0:00:12]} 32. Kxd4 {[%emt 0:04:26]} b3 {[%emt 0:00:59]} 33. Kc3 {[%emt 0:08:02]} bxc2 {[%emt 0:01:21]} 34. Kxc2 {[%emt 0:00:42]} 1/2-1/2